Cogmind - Beta 13 @@@ ROGUE MODE // 2024.06.30 @ 03:14:21 Player: Berg Result: Destroyed by OR-006(R) with Subdweller Machine Gun Performance ------------- Evolutions (0) 0 Regions Visited (3) 600 Robots Destroyed (28) 140 Value Destroyed (648) 648 Prototype IDs (0) 0 Alien Tech Used (0) 0 Bonus (0) 0 TOTAL SCORE: 1388 Bonus ------- None Cogmind --------- Core Integrity 0/250 Matter 185/300 Energy 240/240 System Corruption 1% Temperature Cool (0) Movement Treading (160) Location -10/Subcaves Parts ------- > --- POWER (1) -------- Nuclear Core > --- PROPULSION (2) --- Light Treads Light Treads > --- UTILITY (2) ------ Large Storage Unit Light Armor Plating > --- WEAPON (2) ------- Light Cannon Improved Grenade Launcher > --- INVENTORY (15) --- Improved Ion Engine Improved Ion Engine Light Treads Aluminum Leg High-capacity Matter Pod (178) Sensor Array Seismic Detector Light Armor Plating Light Armor Plating EM Pulse Gun EM Pulse Gun Light Cannon Light Cannon Light Cannon Mining Laser Peak State ------------ > --- POWER ------------ Nuclear Core > --- PROPULSION ------- Light Treads Light Treads > --- UTILITY ---------- Large Storage Unit Light Armor Plating > --- WEAPON ----------- Light Cannon Improved Grenade Launcher > --- INVENTORY -------- Improved Ion Engine Improved Ion Engine Light Treads Aluminum Leg High-capacity Matter Pod Sensor Array Seismic Detector Light Armor Plating Light Armor Plating EM Pulse Gun EM Pulse Gun Light Cannon Light Cannon Light Cannon Mining Laser [Rating: 12] Favorites ----------- Power Improved Ion Engine Engine Improved Ion Engine Power Core Nuclear Core Propulsion Light Treads Treads Light Treads Utility Large Storage Unit Device Heat Sink Storage Large Storage Unit Protection Light Armor Plating Weapon Light Cannon Energy Gun Small Laser Ballistic Cannon Light Cannon Launcher Improved Grenade Launcher Build | -11 -10 -10 -10 ------- Run | Yrd Mat Min Sub Slots Evolved . | . . . . Power . | . . . . Propulsion . | . . . . Utility . | . . . . Weapon . | . . . . Parts Attached 21 | 7 11 2 1 Power 4 | 1 2 1 . Engine 3 | 1 2 . . Core 1 | . . 1 . Reactor . | . . . . Propulsion 5 | 2 3 . . Treads 5 | 2 3 . . Leg . | . . . . Wheel . | . . . . Hover . | . . . . Flight . | . . . . Utility 6 | 2 3 1 . Device 2 | 1 1 . . Storage 3 | 1 2 . . Processor . | . . . . Hackware . | . . . . Protection 1 | . . 1 . Artifact . | . . . . Weapon 6 | 2 3 . 1 Energy Gun 3 | 2 1 . . Energy Cannon . | . . . . Ballistic Gun . | . . . . Ballistic Cannon 2 | . 2 . . Launcher 1 | . . . 1 Special Weapon . | . . . . Impact Weapon . | . . . . Slashing Weapon . | . . . . Piercing Weapon . | . . . . Special Melee Weapon . | . . . . Unidentified Prototypes . | . . . . Parts Lost 2 | . 2 . . Power . | . . . . Propulsion . | . . . . Utility 1 | . 1 . . Weapon 1 | . 1 . . Highest Loss Streak 1 | . 1 . . To Critical Strikes . | . . . . Average Slot Usage (%) 99 | . 98 100 100 Engine 12 | . 14 12 . Core 1 | . . 1 14 Treads 27 | . 27 28 28 Device 1 | . 2 . . Storage 21 | . 25 14 14 Protection 4 | . . 14 14 Energy Gun 12 | . 17 . . Ballistic Cannon 14 | . 10 28 14 Naked Turns . | . . . . Heaviest Build 39 | 13 37 36 39 Greatest Support 40 | 40 40 40 40 Greatest Overweight (x) 1 | 1 1 . . Average Overweight (x) . | . . . . Largest Inventory Capacity 15 | 8 15 15 15 Average Capacity 14 | 7 14 15 15 Most Carried 15 | 5 15 15 15 Average Carried 12 | 2 12 15 15 Final Capacity 15 | 8 15 15 15 Final Carried 15 | 5 15 15 15 Class Distribution -------------------- 100% | Mutant Dominant Class ---------------- Mutant | -10/Materials Mutant | -10/Mines Mutant | -10/Subcaves Resources | -11 -10 -10 -10 ----------- Run | Yrd Mat Min Sub Matter Collected 839 | 255 479 105 . Remotely . | . . . . Salvage Created 919 | 26 783 62 48 Parts 44 | 2 40 2 . Haulers Intercepted 2 | . 2 . . Recyclers Shooed 1 | . 1 . . Parts Field Recycled . | . . . . Retrieved Matter . | . . . . Parts Self-Destructed . | . . . . Prevented . | . . . . Kills | -11 -10 -10 -10 ------- Run | Yrd Mat Min Sub Combat Hostiles Destroyed 20 | . 17 2 1 Guns 11 | . 11 . . Cannons 6 | . 4 2 . AOE 1 | . . . 1 Classes Destroyed 9 | 1 7 . 1 Builder 1 | . 1 . . Tunneler 1 | 1 . . . Hauler 2 | . 2 . . Recycler 2 | . 2 . . Operator 1 | . 1 . . Watcher 1 | . 1 . . Swarmer 6 | . 6 . . Grunt 13 | . 11 2 . Subdweller 1 | . . . 1 Best Kill Streak 4 | 1 4 2 1 Combat Bots Only 4 | . 4 2 1 Max Kills in Single Turn 1 | 1 1 1 1 Gunslinging . | . . . . Exploded 1 | . . . 1 Melee . | . . . . Uniques/NPCs Destroyed . | . . . . Combat | -11 -10 -10 -10 -------- Run | Yrd Mat Min Sub Hostile Shots Fired 115 | . 95 7 13 Missed 26 | . 21 . 5 Damage Taken 1107 | . 826 87 194 Core 255 | . 187 . 68 Absorbed by Shields . | . . . . Core Remaining (%) 100 | 100 . . . Volleys Fired 93 | 1 81 6 5 Largest 2 | 2 2 2 2 Hottest 80 | 80 80 70 71 Shots Fired 183 | 2 159 12 10 Gun 121 | 2 119 . . Cannon 57 | . 40 12 5 Launcher 5 | . . . 5 Special . | . . . . Kinetic 57 | . 40 12 5 Thermal 110 | 2 108 . . Explosive 5 | . . . 5 Electromagnetic 11 | . 11 . . Robot Hit Streak 21 | 2 21 5 5 Robot Miss Streak 4 | . 4 1 2 Penetration Max . | . . . . Secondary Targets . | . . . . Shots Hit Robots 128 | 2 113 8 5 Core Hits 41 | 1 34 3 3 Critical Kills . | . . . . Critical Parts Destroyed . | . . . . Critical Strikes 1 | . . . 1 Blast 1 | . . . 1 Melee Attacks . | . . . . Impact . | . . . . Slashing . | . . . . Piercing . | . . . . Sneak Attacks . | . . . . Combat Hostiles . | . . . . Follow-up Attacks . | . . . . Damage Inflicted 2111 | 24 1435 149 503 Guns 1083 | 24 1059 . . Cannons 576 | . 376 149 51 Explosions 452 | . . . 452 Melee . | . . . . Ramming . | . . . . Kinetic 576 | . 376 149 51 Thermal 929 | 24 905 . . Explosive 452 | . . . 452 Electromagnetic 154 | . 154 . . Impact . | . . . . Slashing . | . . . . Piercing . | . . . . Highest Corruption 1 | . 1 1 1 Average Corruption 1 | . 1 1 1 Corruption Purged . | . . . . Corruption Blocked . | . . . . Effects 11 | . 7 3 1 Message Errors 4 | . 3 . 1 Matter Fused 3 | . 2 1 . Heat Flow Errors 1 | . . 1 . Energy Discharges 1 | . . 1 . Data Loss (minor) 1 | . 1 . . Data Loss (major) 1 | . 1 . . Overload Shots . | . . . . Overflow Damage . | . . . . Projectiles . | . . . . Explosions . | . . . . Melee . | . . . . Knockbacks 7 | . 4 2 1 Impact . | . . . . Kinetic 7 | . 4 2 1 Secondary . | . . . . Self-Inflicted Damage . | . . . . Shots . | . . . . Rammed . | . . . . Targets Rammed . | . . . . Kicked . | . . . . Crushed . | . . . . Highest Temperature 318 | 18 318 272 . Average Temperature 91 | 12 92 87 . Received Heat Transfer 435 | . 372 51 12 Effects 2 | . 1 1 . Interference 1 | . . 1 . Matter Decay 1 | . 1 . . Siege Activations . | . . . . Robots Corrupted . | . . . . Combat Hostiles . | . . . . Parts Fried . | . . . . Impact Corruptions . | . . . . Robots Melted 2 | . 2 . . Combat Hostiles 2 | . 2 . . Parts Melted 6 | . 6 . . Heat Transferred 2075 | 50 2025 . . Parts Sabotaged . | . . . . Parts Stolen . | . . . . Parts Stripped . | . . . . Power Chain Reactions . | . . . . Alert | -11 -10 -10 -10 ------- Run | Yrd Mat Min Sub Peak Influence 252 | 5 252 89 . Initial 39 | . 3 39 . Average 84 | 1 97 51 . Maximum Alert Level 1 | . 1 . . Low Security (%) 92 | 100 89 100 . Level 1 7 | . 10 . . Level 2 . | . . . . Level 3 . | . . . . Level 4 . | . . . . Level 5 . | . . . . High Security . | . . . . Max Security . | . . . . Squads Dispatched 5 | . 4 1 . Investigation 3 | . 2 1 . Extermination . | . . . . Reinforcement 2 | . 2 . . Assault . | . . . . Garrison . | . . . . Intercept . | . . . . Searches Triggered . | . . . . Construction Impeded . | . . . . Haulers Reinforced . | . . . . Active Scanning Responses . | . . . . Cargo Convoy Interrupts . | . . . . Stealth | -11 -10 -10 -10 --------- Run | Yrd Mat Min Sub Distress Signals . | . . . . Communications Jammed . | . . . . Distress Signals . | . . . . Times Spotted 30 | . 23 2 5 Peak Tracking Total 3 | . 3 2 3 Tactical Retreats 1 | . . . 1 Traps | -11 -10 -10 -10 ------- Run | Yrd Mat Min Sub Traps Triggered 4 | . 4 . . Indirectly . | . . . . Trap Hack Attempts . | . . . . Triggered . | . . . . Disarmed . | . . . . Reprogrammed . | . . . . Reused . | . . . . Traps Extracted . | . . . . Installed . | . . . . Triggered . | . . . . Machines | -11 -10 -10 -10 ---------- Run | Yrd Mat Min Sub Machines Disabled 2 | . 2 . . Max in Single Turn 1 | . 1 . . Machines Repaired . | . . . . Machines Dismantled . | . . . . Machines Sabotaged . | . . . . Overloaded Fab Kills . | . . . . Hacking | -11 -10 -10 -10 --------- Run | Yrd Mat Min Sub Machines Accessed 9 | . 8 1 . Terminals 7 | . 7 . . Fabricators . | . . . . Repair Stations . | . . . . Recycling Units 1 | . 1 . . Scanalyzers . | . . . . Garrison Access . | . . . . Total Hacks 21 | . 20 1 . Successful 8 | . 7 1 . Failed 13 | . 13 . . Catastrophic 3 | . 3 . . Database Lockouts . | . . . . Manual 20 | . 20 . . Terminals 18 | . 18 . . Fabricators . | . . . . Repair Stations . | . . . . Recycling Units 2 | . 2 . . Scanalyzers . | . . . . Garrison Access . | . . . . Terminal Hacks 7 | . 6 1 . Robot Analysis 4 | . 4 . . Open Door 1 | . . 1 . Branch Access Points 1 | . 1 . . Terminal Index 1 | . 1 . . Fabricator Hacks . | . . . . Repair Station Hacks . | . . . . Recycling Unit Hacks . | . . . . Scanalyzer . | . . . . Garrison Access Hacks . | . . . . Unauthorized Hacks 1 | . 1 . . Terminals . | . . . . Fabricators . | . . . . Repair Stations . | . . . . Recycling Units 1 | . 1 . . Reject 1 | . 1 . . Scanalyzers . | . . . . Garrison Access . | . . . . Data Cores Recovered . | . . . . Used . | . . . . Hacking Detections 8 | . 8 . . Full Trace Events . | . . . . Feedback Events . | . . . . Feedback Blocked . | . . . . Robot Schematics Acquired . | . . . . Robots Built . | . . . . Authchips . | . . . . Time . | . . . . Total Robot Build Rating . | . . . . Part Schematics Acquired . | . . . . Parts Built . | . . . . Authchips . | . . . . Time . | . . . . Total Part Build Rating . | . . . . Parts Repaired . | . . . . Time . | . . . . Parts Recycled . | . . . . Recycled Matter . | . . . . Retrieved Matter . | . . . . Retrieved Components . | . . . . Parts Scanalyzed . | . . . . Part Schematics Acquired . | . . . . Parts Damaged . | . . . . Bothacking | -11 -10 -10 -10 ------------ Run | Yrd Mat Min Sub Used RIF Installer . | . . . . Robots Hacked . | . . . . Non-combat . | . . . . Combat . | . . . . Robot Hacks Applied . | . . . . Relay Couplers Released . | . . . . Fabnet Peak Effective % . | . . . . Robots Rewired . | . . . . Allies Hacked . | . . . . Hacks Repelled . | . . . . Allies | -11 -10 -10 -10 -------- Run | Yrd Mat Min Sub Total Allies . | . . . . Largest Group . | . . . . Highest-Rated Group . | . . . . Highest-Rated Ally . | . . . . Total Orders . | . . . . Ally Attacks . | . . . . Total Damage . | . . . . Kills . | . . . . Allies Corrupted . | . . . . Allies Melted . | . . . . Intel | -11 -10 -10 -10 ------- Run | Yrd Mat Min Sub Robot Analysis Total 4 | . 4 . . Derelict Logs Recovered 1 | . . 1 . Drone Launches . | . . . . Drone Recoveries . | . . . . Exploration | -11 -10 -10 -10 ------------- Run | Yrd Mat Min Sub Turns Passed 2468 | 75 1696 514 183 Spaces Moved 1180 | 40 781 256 103 Core 9 | 9 . . . Treads 1171 | 31 781 256 103 Legs . | . . . . Wheels . | . . . . Hover . | . . . . Flight . | . . . . Fastest Speed 50 | 50 160 160 160 Average Speed 161 | 141 163 160 160 Slowest Speed 240 | 160 240 160 160 Overloaded Moves . | . . . . Propulsion Burnouts . | . . . . Robots Hopped . | . . . . Cave-ins Triggered . | . . . . Exploration Rate (%) 37 | 3 90 45 10 Regions Visited 3 Branch Regions 2 Pre-discovered Areas . | . . . . Known Exits Taken 1 | . 1 . . Unknown Exits Taken 2 | 1 . 1 . Scrap Searched 1 | . . 1 . Spaces Dug . | . . . . Terrain Destroyed 42 | . . . 42 Melee . | . . . . Projectile . | . . . . AOE 42 | . . . 42 Terrain Rammed . | . . . . Walls Destroyed . | . . . . Machines Disabled . | . . . . Actions | -11 -10 -10 -10 --------- Run | Yrd Mat Min Sub Total 1561 | 53 1047 350 111 Wait 231 | 1 144 84 2 Move 1177 | 39 780 255 103 Hop . | . . . . Pick Up 22 | 5 16 1 . Fast Attach 13 | 7 6 . . Attach 2 | . 2 . . Detach 3 | . 3 . . Swap 6 | . 3 2 1 Drop 14 | . 12 2 . Fire 93 | 1 81 6 5 Melee . | . . . . Ram . | . . . . Kick . | . . . . Crush . | . . . . Escape Stasis . | . . . . Rewire . | . . . . Trap . | . . . . Miscellaneous . | . . . . Route ------- -11/Scrapyard -10/Materials (discovered 5 exits: [*Mat x3] / *Min x2) -10/Mines (discovered 2 exits: [*Mat] / [*Sub]) -10/Subcaves History --------- Turn | Location | Event 18 | -11/Scrapyard | Discovered new exit (range 14) 76 | -11/Scrapyard | Entered Materials 310 | -10/Materials | Build established: Mutant 594 | -10/Materials | Core integrity fell below 50% 1116 | -10/Materials | Discovered new exit (range 6) 1450 | -10/Materials | Discovered new exit (range 4) 1527 | -10/Materials | Discovered new exit (range 7) 1705 | -10/Materials | Discovered new exit (range 8) 1726 | -10/Materials | Identified exit to Mines 1772 | -10/Materials | Entered Mines 2038 | -10/Mines | Discovered new exit (range 9) 2200 | -10/Mines | Met a Derelict shopkeep closing up shop 2283 | -10/Mines | Discovered new exit (range 3) 2286 | -10/Mines | Entered Subcaves 2289 | -10/Subcaves | Ambushed by Subdwellers from Twisted Machinery 2459 | -10/Subcaves | Ambushed by Subdwellers from Twisted Machinery 2461 | -10/Subcaves | Ambushed by Subdweller buried in earth 2462 | -10/Subcaves | Core integrity fell below 20% 2469 | -10/Subcaves | Destroyed by OR-006(R) with Subdweller Machine Gun Last Messages --------------- 02210_ Dropped Imp. Ion Engine. 02215_ Dropped Grenade Launcher. 02215_ Acquired Imp. Grenade Launcher. 02253_ System corrupted: Heat flow error (+287). 02259_ Overheating: System interference. 02259_ Lgt. Cannon temporarily disabled. 02275_ T-07 Excavator is excavating. 02283_ EXIT=FOUND LOCATION=UNKNOWN AMBIENT_HEAT=-10 GOAL=ESCAPE 02289_ YI-2SA(R) emerges from the Twisted Machinery. 02292_ BS-ZIN(R) destroyed. 02292_ YI-2SA(R) Sub. Laser blasted off. 02298_ Subatomizers dissect the Sub. Laser, destroying it. 02311_ The unstable cave ceiling collapses. 02398_ SJAWFI68C/BMD BL76SBZPU:GBAOJEXDX#1MJ 02459_ 8N-57P(R) emerges from the Twisted Machinery. 02461_ 8N-57P(R) knocked back. 02462_ OR-006(R): "FREEEEDUMB!" Map ----- +----------------------------------------------------+ | ?????????????????????????????????????????????????? | | ?????????????????????????????????????????????????? | | ?????????????????????????????????????????????????? | | ?????????????????????????????????????????????????? | | ?????????????????????????????????????????????????? | | ?????????????????????????????????????????????????? | | ?????????????????????????????????????????????????? | | ?????????????????????????????????????????????????? | | ?????????????????????????????????????????????????? | | ?????????????????????????????????????????????????? | | ?????????????????????????????????????????????##??? | | ??????????????????????????#???????????????? ??? | | ?????????????????????????# ???????????????? ??? | | ?????????????????######## ???????????#"" #?# | | ?????????????????# ???????????""" ? | | ?????????????????# ???????????""" ## ? | | ????????????#????# R % ??????????? ?# | | ???????????? ??# ?????????## ???# ## | | ???????????? ?# R ##???????## ????# | | ????????????# ## #??###### ?????# # | | ???????????## ####" ## #???#### # | | ???????????# "" # ##### # | | ????????????? # # | | ????????????????# # | | ?????????????????# # | | ????????????????????## @ ;# ## ## # | | ?????????????????????#;;;R ;;# ### ##### | | ?????????????????????## ;;;; ## ##?# #??# | | ??????????????????????## #####??# ##??##### | | ???????????????????????#######??????# #???????# | | ????????????????????????????????????######???????? | | ?????????????????????????????????????????????????? | | ?????????????????????????????????????????????????? | | ?????????????????????????????????????????????????? | | ?????????????????????????????????????????????????? | | ?????????????????????????????????????????????????? | | ?????????????????????????????????????????????????? | | ?????????????????????????????????????????????????? | | ?????????????????????????????????????????????????? | | ?????????????????????????????????????????????????? | | ?????????????????????????????????????????????????? | | ?????????????????????????????????????????????????? | | ?????????????????????????????????????????????????? | | ?????????????????????????????????????????????????? | | ?????????????????????????????????????????????????? | | | | | | | | | | | +----------------------------------------------------+ Best States ------------- Heat Dissipation 35 Energy Generation 14 Energy Capacity 265 Matter Stores 500 Matter Capacity 500 Sight Range 16 Terrain Scan Density 10 Armor Coverage 150 Evasion (%) 40 Recoil Reduction 2 Item Schematics ----------------- None Robot Schematics ------------------ None Fabricated ------------ Nothing Alien Tech Used ----------------- None Achievements -------------- None Challenges ------------ None Game ------ Seed BombardmentHugeFalx Manual? 0 Play Time 00:17:20 Cumulative 57.4 hours Start 2024.06.30 @ 02:57:44 End 2024.06.30 @ 03:14:21 Sessions 1 Manual Loads 0 Difficulty Rogue Special Mode None Game No. 52 Rogue 52 Adventurer 0 Explorer 0 Win Type - Total 0 Types 0/0/0/0/0/0/0/0/0 Lore% 20 Gallery% 40 Achievement% 35 Wizard Run 0 Options --------- Layout 0 ASCII 0 Keyboard 1 Movement Numpad Keybinds 0 Fullscreen 2 Font 18/SmallcapsGlow Map View 76x50 Zoom Use 0% Tactical HUD 1 Map Filters NONE Filters NONE Steam 1 RUN: fc499fe9-688a-4e51-a0b1-bcb7b02c4138